fUST/lending_fUST_20251230
["ID","MTS","AMOUNT","RATE_DAILY","PERIOD"]
[400064576,1767059452628,-181.903392,0.00037477,31]
[400064577,1767059452638,-152.165448,0.00037477,31]
[400064578,1767059452649,-181.903392,0.00037477,31]
[400064579,1767059452659,-152.165449,0.00037477,31]
[400064580,1767059452670,-181.903392,0.00037477,31]
[400064581,1767059452681,-181.903392,0.00037477,31]
[400064582,1767059452690,-181.903392,0.00037477,31]
[400064583,1767059452700,-181.903392,0.00037477,31]
[400064584,1767059452714,-181.903392,0.00037477,31]
[400064585,1767059452724,-181.903392,0.00037477,31]
[400064586,1767059452734,-181.903392,0.00037477,31]
[400064587,1767059452744,-181.903392,0.00037477,31]
[400064588,1767059452754,-181.903392,0.00037477,31]
[400064589,1767059452765,-181.903392,0.00037477,31]
[400064590,1767059452774,-181.903392,0.00037477,31]
[400064591,1767059452785,-181.903392,0.00037477,31]
[400064592,1767059452795,-181.903392,0.00037477,31]
[400064593,1767059452805,-181.903393,0.00037477,31]
[400064594,1767059452814,-152.267423,0.00037477,31]
[400064595,1767059452824,-151.0,0.00037477,31]
[400064596,1767059452834,-151.0,0.00037477,31]
[400064597,1767059452843,-153.832417,0.00037477,31]
[400064598,1767059452852,-151.0,0.00037477,31]
[400064599,1767059452862,-151.0,0.00037477,31]
[400064600,1767059452871,-151.0,0.00037477,31]
[400064601,1767059452881,-151.000006,0.00037477,31]
[400064602,1767059452890,-151.0,0.00037477,31]
[400064603,1767059452899,-153.627378,0.00037477,31]
[400064604,1767059452909,-151.0,0.00037477,31]
[400064605,1767059452918,-151.0,0.00037477,31]
[400064606,1767059452927,-151.0,0.00037477,31]
[400064607,1767059452936,-163.131538,0.00037477,31]
[400064608,1767059452946,-151.0,0.00037477,31]
[400064609,1767059452955,-151.0,0.00037477,31]
[400064610,1767059452964,-153.964995,0.00037477,31]
[400064611,1767059452975,-151.0,0.00037477,31]
[400064612,1767059452985,-231.137909,0.00037477,31]
[400064613,1767059452994,-151.0,0.00037477,31]
[400064614,1767059453003,-249.707968,0.00037477,31]
[400064615,1767059453013,-153.072158,0.00037477,31]
[400064616,1767059453022,-155.33872,0.00037477,31]
[400064617,1767059453032,-1000.0,0.0003748,11]
[400064618,1767059453041,-1202.659268,0.0003748,11]
[400064619,1767059453051,-270.457353,0.0003748,31]
[400064620,1767059453061,-151.0,0.0003748,31]
[400064621,1767059453070,-151.0,0.0003748,30]
[400064622,1767059453085,-151.278555,0.0003748,2]
[400064623,1767059453095,-151.0,0.0003748,30]
[400064624,1767059453105,-151.0,0.0003748,31]
[400064625,1767059453116,-151.0,0.0003748,31]
[400064626,1767059453127,-253.18002,0.0003748,31]
[400064627,1767059453137,-151.0,0.0003748,31]
[400064628,1767059453147,-151.0,0.0003748,31]
[400064629,1767059453157,-174.44987,0.0003748,31]
[400064630,1767059453167,-1000.0,0.000375,11]
[400064631,1767059453177,-1000.0,0.000375,11]
[400064632,1767059453188,-250.0,0.000375,10]
[400064633,1767059453198,-1500.0,0.000375,24]
[400064634,1767059453207,-800.0,0.00037501,7]
[400064635,1767059453217,-800.0,0.00037517,7]
[400064636,1767059453227,-151.0,0.00037522,30]
[400064637,1767059453237,-151.0,0.00037522,30]
[400064638,1767059453246,-151.0,0.00037522,30]
[400064639,1767059453256,-151.0,0.00037522,30]
[400064640,1767059453266,-230.049054,0.00037522,30]
[400064641,1767059453276,-154.275443,0.00037522,31]
[400064642,1767059453285,-151.0,0.00037522,31]
[400064643,1767059453295,-166.222523,0.00037522,31]
[400064644,1767059453304,-265.125053,0.00037522,31]
[400064645,1767059453314,-154.583017,0.00037522,31]
[400064646,1767059453325,-284.692348,0.00037522,31]
[400064647,1767059453335,-153.908048,0.00037522,31]
[400064648,1767059453345,-151.0,0.00037522,31]
[400064649,1767059453356,-151.0,0.00037522,31]
[400064650,1767059453365,-186.874272,0.00037522,31]
[400064651,1767059453375,-151.0,0.00037522,31]
[400064652,1767059453384,-151.0,0.00037522,31]
[400064653,1767059453394,-151.0,0.00037522,31]
[400064654,1767059453403,-216.99984,0.00037522,31]
[400064655,1767059453412,-6588.543699,0.00037522,28]
[400064656,1767059453422,-6588.543699,0.00037522,28]
[400064657,1767059453431,-6588.543699,0.00037522,28]
[400064658,1767059453441,-6588.543699,0.00037522,28]
[400064659,1767059453450,-6588.543699,0.00037522,28]
[400064660,1767059453460,-6588.543699,0.00037522,28]
[400064661,1767059453470,-6588.543699,0.00037522,28]
[400064662,1767059453479,-6588.543699,0.00037522,28]
[400064663,1767059453489,-6588.543699,0.00037522,28]
[400064664,1767059453498,-6588.543699,0.00037522,28]
[400064665,1767059453508,-6588.543699,0.00037522,28]
[400064666,1767059453517,-6588.543699,0.00037522,28]
[400064667,1767059453527,-160.167624,0.00037522,31]
[400064668,1767059453537,-6588.543699,0.00037522,28]
[400064669,1767059453547,-6588.543699,0.00037522,28]
[400064670,1767059453556,-6588.543699,0.00037522,28]
[400064671,1767059453566,-6588.543699,0.00037522,28]
[400064672,1767059453576,-6588.543699,0.00037522,28]
[400064673,1767059453586,-6588.543699,0.00037522,28]
[400064674,1767059453595,-6588.543699,0.00037522,28]
[400064675,1767059453605,-6588.543692,0.00037522,28]
[400064676,1767059453614,-151.0,0.00037522,31]
[400064677,1767059453624,-151.0,0.00037522,31]
[400064678,1767059453634,-2736.914356,0.00037522,31]
[400064679,1767059453643,-2736.914356,0.00037522,31]
[400064680,1767059453653,-151.0,0.00037522,31]
[400064681,1767059453664,-2736.914356,0.00037522,31]
[400064682,1767059453674,-219.766951,0.00037522,31]
[400064683,1767059453684,-2736.914356,0.00037522,31]
[400064684,1767059453694,-2736.914356,0.00037522,31]
[400064685,1767059453704,-2736.914356,0.00037522,31]
[400064686,1767059453714,-2736.914356,0.00037522,31]
[400064687,1767059453724,-2736.914356,0.00037522,31]
[400064688,1767059453734,-2736.914356,0.00037522,31]
[400064689,1767059453745,-2736.914356,0.00037522,31]
[400064690,1767059453755,-2736.914356,0.00037522,31]
[400064691,1767059453765,-2736.914356,0.00037522,31]
[400064692,1767059453774,-2736.914356,0.00037522,31]
[400064693,1767059453783,-2736.914356,0.00037522,31]
[400064694,1767059453794,-2736.914356,0.00037522,31]
[400064695,1767059453803,-2736.914356,0.00037522,31]
[400064696,1767059453812,-2736.914356,0.00037522,31]
[400064697,1767059453822,-2736.914356,0.00037522,31]
[400064698,1767059453831,-2736.914356,0.00037522,31]
[400064699,1767059453841,-2736.914361,0.00037522,31]
[400064700,1767059453851,-151.0,0.00037522,31]
[400064701,1767059453862,-261.97415,0.00037522,31]
[400064702,1767059453871,-151.0,0.00037522,31]
[400064703,1767059453881,-155.443843,0.00037522,31]
[400064704,1767059453890,-151.0,0.00037522,31]
[400064705,1767059453900,-151.0,0.00037522,31]
[400064706,1767059453910,-151.0,0.00037522,31]
[400064707,1767059453919,-151.0,0.00037522,31]
[400064708,1767059453931,-110990.91377576,0.00037522,20]
[400064709,1767059454008,-11660.35021969,0.00037522,20]
[400064710,1767059454312,-5328.0,0.00030685,30]
[400064711,1767059454322,-342.0,0.0003112,30]
[400064712,1767059454332,-420.0,0.00033547,120]
[400064713,1767059454342,-447.0,0.00035547,120]
[400064714,1767059454352,-376.253583,0.00035562,30]
[400064715,1767059454363,-303.3053281,0.00035836,30]
[400064716,1767059454372,-150.38167327,0.00036317,7]
[400064717,1767059454382,-180.802086,0.00037522,31]
[400064718,1767059454392,-180.802086,0.00037522,31]
[400064719,1767059454403,-180.802086,0.00037522,31]
[400064720,1767059454412,-180.802086,0.00037522,31]
[400064721,1767059454421,-180.802086,0.00037522,31]
[400064722,1767059454431,-180.802086,0.00037522,31]
[400064723,1767059454440,-180.802086,0.00037522,31]
[400064724,1767059454449,-180.802086,0.00037522,31]
[400064725,1767059454458,-180.802086,0.00037522,31]
[400064726,1767059454468,-618.28974425,0.00037522,20]
[400064727,1767059531719,500.95575263,0.00013273,2]
[400064728,1767059533193,500.0,0.00013273,2]
[400064729,1767059533427,500.0,0.00013273,2]
[400064730,1767059590155,601.279007,0.00013273,2]
[400064731,1767059590233,500.0,0.00013273,2]
[400064732,1767059593417,500.0,0.00013273,2]
[400064733,1767059596890,500.0,0.00013273,2]
[400064734,1767059597001,500.0,0.00013273,2]
[400064735,1767059600745,500.0,0.00013273,2]
[400064736,1767059600969,500.0,0.00013273,2]
[400064737,1767059601399,83.45841464,0.00013273,2]
[400064738,1767059601421,416.54158536,0.00013273,2]
[400064739,1767059602721,500.0,0.00013273,2]
[400064740,1767059603583,500.0,0.00013273,2]
[400064741,1767059603683,503.67658443,0.00013273,2]
[400064742,1767059603715,500.0,0.00013273,2]
[400064743,1767059647251,500.0,0.00013273,2]
[400064744,1767059651155,500.0,0.00013273,2]
[400064745,1767059653494,500.0,0.00013273,2]
[400064746,1767059653525,500.58541895,0.00013273,2]
[400064747,1767059704043,500.0,0.00013273,2]
[400064748,1767059704082,501.25754819,0.00013273,2]
[400064749,1767059710518,194.49049264,0.00025448,120]
[400064750,1767059711157,194.31394528,0.00025448,120]
[400064751,1767059713887,501.55071605,0.00013273,2]
[400064752,1767059719753,500.8149509,0.00013273,2]
[400064753,1767059720180,501.31976807,0.00013273,2]
[400064754,1767059723247,500.0,0.00013273,2]
[400064755,1767059723335,502.16469837,0.00013273,2]
[400064756,1767059723448,500.0,0.00013273,2]
[400064757,1767059724080,500.0,0.00013273,2]
[400064758,1767059724189,5000.0,0.0001328,2]
[400064759,1767059726447,500.0,0.00013273,2]
[400064760,1767059726890,500.0,0.00013273,2]
[400064761,1767059767793,640.9263956,0.00013273,2]
[400064762,1767059772469,500.0,0.00013273,2]
[400064763,1767059844769,502.11494561,0.00013273,2]
[400064764,1767059845217,354.80396042,0.00013273,2]
[400064765,1767059845240,146.43723683,0.00013273,2]
[400064766,1767059845290,502.6062041,0.00013273,2]
[400064767,1767059846005,638.31542847,0.00013273,2]
[400064768,1767059847667,500.0,0.00013273,2]
[400064769,1767059882734,501.51940967,0.00013273,2]
[400064770,1767059883074,483.39487191,0.00013273,2]
[400064771,1767059883118,498.72043585,0.00013273,2]
[400064772,1767059884062,500.0,0.00013273,2]
[400064773,1767059892114,500.0,0.00013273,2]
[400064774,1767059944971,501.95091001,0.00013273,2]
[400064775,1767059965201,500.0,0.00013273,2]
[400064776,1767060006067,500.0,0.00013273,2]
[400064777,1767060013313,501.12238674,0.00013273,2]
[400064778,1767060066957,500.0,0.00013273,2]
[400064779,1767060067148,500.0,0.00013273,2]
[400064780,1767060089099,500.0,0.00013273,2]
[400064781,1767060124033,500.0,0.00013273,2]
[400064782,1767060124967,605.28720895,0.00013273,2]
[400064783,1767060125071,500.0,0.00013273,2]
[400064784,1767060127574,500.0,0.00013273,2]
[400064785,1767060183338,120.65590747,0.00013273,2]
[400064786,1767060183361,48.76274404,0.00013273,2]
[400064787,1767060205042,500.0,0.00013273,2]
[400064788,1767060245983,508.22961162,0.00013273,2]
[400064789,1767060247047,500.0,0.00013273,2]
[400064790,1767060303174,501.01989761,0.00013273,2]
[400064791,1767060303432,642.44411115,0.00013273,2]
[400064792,1767060325680,500.0,0.00013273,2]
[400064793,1767060340505,314.74185833,0.00028767,120]
[400064794,1767060364379,502.45540474,0.00013273,2]
[400064795,1767060367555,500.0,0.00013273,2]
[400064796,1767060424163,501.27115609,0.00013273,2]
[400064797,1767060448389,491.16278685,0.00013273,2]
[400064798,1767060488019,500.0,0.00013273,2]
[400064799,1767060494789,4304.6642879,0.0001328,2]
[400064800,1767060494813,695.3357121,0.0001328,2]
[400064801,1767060515655,333.0,0.00028767,120]
[400064847,1767060611099,500.0,0.00013273,2]
[400064850,1767060628520,239.16,0.0001,2]
[400064877,1767060631537,-300.0,0.00013298,2]
[400064892,1767060631665,-609.0,0.00013298,2]
[400064895,1767060631677,-9003.30795118,0.00013299,2]
[400064898,1767060631689,-275.28991896,0.00013299,2]
[400065189,1767060637775,-343.18521988,0.00013298,2]
[400065191,1767060637785,-241.03134849,0.00013298,2]
[400065193,1767060637794,-568.53800896,0.00013298,2]
[400065195,1767060637803,-529.0244382,0.00013298,2]
[400065197,1767060637813,-500.0,0.00013298,2]
[400065199,1767060637822,-20657.602879,0.00013299,2]
[400065201,1767060637836,-10063.83925086,0.00013299,2]
[400065203,1767060637845,-500.0,0.00013397,2]
[400065205,1767060637853,-512.39351428,0.00013397,2]
[400065207,1767060637863,-500.0,0.00013397,2]
[400065209,1767060637872,-569.26710797,0.00013397,2]
[400065211,1767060637881,-500.0,0.00013397,2]
[400065213,1767060637890,-259.0,0.00013397,2]
[400065215,1767060637900,-222.58879572,0.00013398,2]
[400065217,1767060637909,-657.72121952,0.00013466,2]
[400065218,1767060637918,-186.41437885,0.00013566,2]
[400065220,1767060637927,-300.0,0.00013666,2]
[400065222,1767060637936,-300.0,0.00013666,2]
[400065224,1767060637945,-300.0,0.00013666,2]
[400065226,1767060637954,-300.0,0.00013666,2]
[400065228,1767060637963,-300.0,0.00013666,2]
[400065230,1767060637972,-300.0,0.00013666,2]
[400065231,1767060637981,-300.0,0.00013666,2]
[400065233,1767060637990,-300.0,0.00013666,2]
[400065235,1767060637999,-300.0,0.00013666,2]
[400065237,1767060638008,-300.0,0.00013666,2]
[400065239,1767060638018,-300.0,0.00013666,2]
[400065241,1767060638027,-300.0,0.00013666,2]
[400065243,1767060638036,-300.0,0.00013666,2]
[400065245,1767060638045,-300.0,0.00013666,2]
[400065247,1767060638054,-300.0,0.00013666,2]
[400065249,1767060638063,-600.0,0.00013666,2]
[400065250,1767060638073,-300.0,0.00013673,2]
[400065252,1767060638083,-507.52539763,0.00013698,2]
[400065254,1767060638093,-175.88826675,0.00013698,2]
[400065256,1767060638102,-569.18570614,0.00013698,2]
[400065258,1767060638111,-500.0,0.00013698,2]
[400065260,1767060638120,-500.0,0.00013698,2]
[400065261,1767060638129,-500.0,0.00013698,2]
[400065263,1767060638138,-501.25655426,0.00013698,2]
[400065265,1767060638148,-501.26449218,0.00013699,2]
[400065267,1767060638156,-500.0,0.00013699,2]
[400065269,1767060638165,-502.56460974,0.00013699,2]
[400065271,1767060638175,-500.0,0.00013699,2]
[400065273,1767060638184,-501.2548896,0.00013699,2]
[400065275,1767060638194,-164.39071824,0.00013699,2]
[400065277,1767060638203,-500.0,0.00013699,2]
[400065279,1767060638213,-500.0,0.00013699,2]
[400065280,1767060638223,-500.0,0.00013699,2]
[400065282,1767060638232,-500.0,0.00013699,2]
[400065284,1767060638241,-505.64090896,0.00013821,2]
[400065286,1767060638250,-509.0674373,0.00013821,2]
[400065288,1767060638259,-502.70056384,0.00013821,2]
[400065290,1767060638268,-886.11768709,0.00013821,2]
[400065292,1767060638277,-298.4228942,0.00014221,2]
[400065293,1767060638286,-1000.0,0.00014247,2]
[400065295,1767060638295,-304.76708556,0.00014247,2]
[400065297,1767060638304,-500.90387971,0.00014247,2]
[400065299,1767060638313,-1000.0,0.00014247,2]
[400065301,1767060638322,-415.49447772,0.00014247,2]
[400065303,1767060638331,-511.44320942,0.00014247,2]
[400065304,1767060638341,-170.1,0.00014384,2]
[400065306,1767060638350,-420.0,0.00014579,2]
[400065308,1767060638360,-302.96487012,0.00014795,2]
[400065310,1767060638370,-1162.12803708,0.00014795,2]
[400065312,1767060638380,-482.97674404,0.00014957,2]
[400065314,1767060638389,-720.0,0.00015032,2]
[400065316,1767060638398,-185.328356,0.00015068,2]
[400065318,1767060638407,-177.0,0.00015397,2]
[400065320,1767060638416,-255.16,0.00015583,2]
[400065322,1767060638425,-661.25204951,0.00015839,2]
[400065324,1767060638434,-869.35813927,0.00016361,2]
[400065326,1767060638446,-864.0,0.00016535,2]
[400065327,1767060638454,-340.21,0.00016782,2]
[400065329,1767060638464,-657.72121946,0.00016884,2]
[400065331,1767060638473,-1190.25368912,0.0001739,2]
[400065333,1767060638482,-204.0,0.00017397,2]
[400065335,1767060638492,-250.88647305,0.00017702,2]
[400065337,1767060638501,-1545.52558092,0.00017764,2]
[400065339,1767060638510,-8313.32,0.000178,3]
[400065341,1767060638519,-425.26,0.00017981,2]
[400065343,1767060638529,-1000.0,0.00018189,2]
[400065345,1767060638538,-185.328356,0.00018493,2]
[400065347,1767060638548,-2116.00655844,0.0001894,2]
[400065349,1767060638557,-510.31,0.00019179,2]
[400065351,1767060638567,-231.0,0.00019397,2]
[400065353,1767060638577,-1000.0,0.00020008,2]
[400065355,1767060638586,-244.0,0.00020008,2]
[400065356,1767060638596,-4792.93,0.000201,2]
[400065358,1767060638605,-356.41,0.000201,2]
[400065360,1767060638614,-657.72121946,0.00020301,2]
[400065362,1767060638624,-595.36,0.00020378,2]
[400065364,1767060638633,-1041.66666667,0.00020725,2]
[400065366,1767060638642,-321.283858,0.00021,2]
[400065368,1767060638652,-258.0,0.00021397,2]
[400065370,1767060638661,-680.42,0.00021577,2]
[400065372,1767060638670,-556.05,0.00021907,10]
[400065373,1767060638679,-501.47115126,0.00021917,2]
[400065375,1767060638689,-500.0,0.00021917,2]
[400065377,1767060638699,-500.0,0.00021917,2]
[400065379,1767060638709,-500.0,0.00021917,2]
[400065381,1767060638718,-500.0,0.00021917,2]
[400065383,1767060638728,-153.73994873,0.00021917,2]
[400065385,1767060638738,-602.7,0.00021917,2]
[400065387,1767060638747,-500.0,0.00021917,2]
[400065389,1767060638757,-500.0,0.00021917,2]
[400065391,1767060638766,-500.0,0.00021917,2]
[400065393,1767060638775,-185.328356,0.00021918,2]
[400065395,1767060638786,-207.76,0.00022,7]
[400065397,1767060638795,-1000.0,0.00022009,10]
[400065399,1767060638804,-492.0,0.00022009,10]
[400065401,1767060638814,-500.0,0.00022191,2]
[400065403,1767060638823,-500.0,0.00022191,2]
[400065405,1767060638832,-588.47770235,0.00022191,2]
[400065407,1767060638842,-500.0,0.00022191,2]
[400065408,1767060638853,-602.7,0.00022191,2]
[400065410,1767060638863,-500.0,0.00022191,2]
[400065412,1767060638872,-500.0,0.00022191,2]
[400065414,1767060638881,-500.0,0.00022191,2]
[400065416,1767060638894,-500.0,0.00022465,2]
[400065418,1767060638903,-500.0,0.00022465,2]
[400065420,1767060638912,-500.0,0.00022465,2]
[400065422,1767060638923,-602.7,0.00022465,2]
[400065424,1767060638932,-500.0,0.00022465,2]
[400065426,1767060638942,-500.0,0.00022465,2]
[400065428,1767060638952,-500.0,0.00022465,2]
[400065430,1767060638962,-500.0,0.00022739,2]
[400065432,1767060638971,-500.0,0.00022739,2]
[400065434,1767060638981,-500.0,0.00022739,2]
[400065436,1767060638990,-602.7,0.00022739,2]
[400065438,1767060638999,-500.0,0.00022739,2]
[400065440,1767060639008,-500.0,0.00022739,2]
[400065442,1767060639018,-500.0,0.00022739,2]
[400065443,1767060639027,-765.47,0.00022775,2]
[400065445,1767060639036,-500.0,0.00023013,2]
[400065447,1767060639046,-508.02519418,0.00023013,2]
[400065449,1767060639056,-500.0,0.00023013,2]
[400065451,1767060639065,-602.7,0.00023013,2]
[400065453,1767060639074,-500.0,0.00023013,2]
[400065455,1767060639084,-500.0,0.00023013,2]
[400065457,1767060639094,-500.0,0.00023013,2]
[400065458,1767060639103,-500.0,0.00023287,2]
[400065460,1767060639112,-500.0,0.00023287,2]
[400065462,1767060639121,-602.7,0.00023287,2]
[400065464,1767060639131,-500.0,0.00023287,2]
[400065466,1767060639140,-500.0,0.00023287,2]
[400065468,1767060639149,-500.0,0.00023287,2]
[400065470,1767060639159,-285.0,0.00023397,2]
[400065472,1767060639167,-500.0,0.00023452,2]
[400065474,1767060639177,-500.0,0.00023561,2]
[400065476,1767060639186,-500.0,0.00023561,2]
[400065478,1767060639196,-602.7,0.00023561,2]
[400065480,1767060639205,-500.0,0.00023561,2]
[400065482,1767060639214,-500.0,0.00023561,2]
[400065484,1767060639223,-520.3,0.00023561,2]
[400065485,1767060639233,-657.72121946,0.00023719,2]
[400065487,1767060639243,-500.0,0.00023835,2]
[400065489,1767060639252,-500.0,0.00023835,2]
[400065490,1767060639263,-200.0,0.00023835,2]
[400065491,1767060639272,-200.0,0.00023835,2]
[400065492,1767060639281,-200.0,0.00023835,2]
[400065493,1767060639290,-200.0,0.00023835,2]
[400065494,1767060639299,-200.0,0.00023835,2]
[400065495,1767060639307,-200.0,0.00023835,2]
[400065496,1767060639317,-200.0,0.00023835,2]
[400065497,1767060639327,-200.0,0.00023835,2]
[400065498,1767060639340,-602.7,0.00023835,2]
[400065499,1767060639349,-188.62587961,0.00023835,2]
[400065500,1767060639359,-500.0,0.00023835,2]
[400065501,1767060639369,-850.52,0.00023974,2]
[400065503,1767060639378,-465.2,0.00024109,2]
[400065505,1767060639387,-500.0,0.00024109,2]
[400065507,1767060639397,-200.0,0.00024109,2]
[400065508,1767060639407,-602.7,0.00024109,2]
[400065509,1767060639417,-500.0,0.00024109,2]
[400065510,1767060639426,-162.75311705,0.00024175,2]
[400065511,1767060639435,-194.49049265,0.00024175,2]
[400065512,1767060639445,-194.31394529,0.00024175,2]
[400065513,1767060639455,-1000.0,0.00024209,10]
[400065514,1767060639464,-791.0,0.00024209,10]
[400065515,1767060639473,-500.0,0.00024383,2]
[400065516,1767060639483,-200.0,0.00024383,2]
[400065517,1767060639493,-602.7,0.00024383,2]
[400065518,1767060639504,-500.0,0.00024383,2]
[400065519,1767060639514,-163.73380504,0.00024557,2]
[400065520,1767060639524,-500.0,0.00024657,2]
[400065521,1767060639534,-200.0,0.00024657,2]
[400065522,1767060639543,-602.7,0.00024657,2]
[400065523,1767060639553,-576.92380782,0.00024657,2]
[400065524,1767060639562,-380.0,0.00024658,2]
[400065526,1767060639572,-16344.7214416,0.000248,2]
[400065528,1767060639582,-13751.15465079,0.00024831,2]
[400065529,1767060639592,-500.0,0.00024847,2]
[400065530,1767060639602,-500.0,0.00024931,2]
[400065532,1767060639612,-200.0,0.00024931,2]
[400065534,1767060639621,-602.7,0.00024931,2]
[400065535,1767060639630,-194.31394529,0.00025193,56]
[400065536,1767060639639,-162.75311705,0.00025193,16]
[400065537,1767060639648,-4792.93,0.000252,2]
[400065538,1767060639658,-356.41,0.000252,14]
[400065539,1767060639667,-285.40536442,0.00025205,2]
[400065540,1767060639677,-200.0,0.00025205,2]
[400065541,1767060639686,-602.7,0.00025205,2]
[400065542,1767060639697,-207.76,0.000253,7]
[400065543,1767060639707,-185.328356,0.00025342,2]
[400065545,1767060639716,-312.0,0.00025397,2]
[400065547,1767060639726,-235.47988519,0.00025448,30]
[400065549,1767060639735,-200.0,0.00025479,2]
[400065550,1767060639745,-602.7,0.00025479,2]
[400065552,1767060639754,-311.3580163,0.00025753,2]
[400065553,1767060639764,-602.7,0.00025753,2]
[400065554,1767060639774,-602.7,0.00026027,2]
[400065555,1767060639783,-162.75311705,0.00026211,30]
[400065556,1767060639792,-13751.15465071,0.00026226,2]
[400065557,1767060639802,-275.44,0.000263,2]
[400065558,1767060639811,-602.7,0.00026301,2]
[400065559,1767060639820,-163.73380504,0.0002639,2]
[400065560,1767060639829,-602.7,0.00026575,2]
[400065561,1767060639838,-1000.0,0.0002663,30]
[400065562,1767060639847,-1000.0,0.0002663,30]
[400065563,1767060639857,-602.7,0.00026849,2]
[400065564,1767060639866,-500.0,0.00027033,7]
[400065565,1767060639875,-602.7,0.00027123,2]
[400065566,1767060639885,-657.72121946,0.00027137,2]
[400065567,1767060639894,-602.7,0.00027397,2]
[400065568,1767060639905,-500.0,0.00027397,5]
[400065569,1767060639914,-339.0,0.00027397,2]
[400065570,1767060639922,-13751.15465071,0.00027622,2]
[400065571,1767060639932,-602.7,0.00027671,2]
[400065572,1767060639941,-602.7,0.00027945,2]
[400065573,1767060639951,-1000.0,0.00027945,5]
[400065574,1767060639960,-1041.66666667,0.00028,3]
[400065575,1767060639969,-1041.66666667,0.00028,3]
[400065576,1767060639978,-602.7,0.00028219,2]
[400065577,1767060639988,-163.73380504,0.00028224,2]
[400065578,1767060639997,-676.29433801,0.00028493,5]
[400065579,1767060640006,-1341.07728692,0.00028493,5]
[400065580,1767060640015,-185.328356,0.00028767,60]
[400065581,1767060640024,-275.44,0.000288,2]
[400065582,1767060640033,-206.01879,0.00029,120]
[400065583,1767060640043,-13751.15465071,0.00029017,2]
[400065584,1767060640052,-4792.93,0.000291,2]
[400065585,1767060640061,-356.41,0.000291,14]
[400065586,1767060640070,-1000.0,0.00029293,30]
[400065587,1767060640080,-1000.0,0.00029293,30]
[400065588,1767060640089,-579.0,0.00029293,30]
[400065589,1767060640098,-207.76,0.000293,7]
[400065590,1767060640108,-366.0,0.00029397,2]
[400065591,1767060640117,-173.43444564,0.00029881,20]
[400065592,1767060640126,-100000.0,0.0002999,2]
[400065593,1767060640135,-284.92903015,0.0003,120]
[400065594,1767060640144,-2000.01,0.0003,30]
[400065595,1767060640153,-256.0,0.0003003,30]
[400065596,1767060640163,-5327.0,0.0003003,30]
[400065598,1767060640173,-163.73380504,0.00030057,2]
[400065599,1767060640182,-13751.15465071,0.00030413,2]
[400065600,1767060640191,-657.72121946,0.00030555,2]
[400065601,1767060640202,-1075.23,0.00030958,30]
[400065602,1767060640211,-541.00842197,0.00031,120]
[400065603,1767060640220,-469.38876097,0.00031,120]
[400065604,1767060640230,-1136.67682311,0.00031,120]
[400065605,1767060640332,-193.03669402,0.00031,120]
[400065606,1767060640342,-215.2046116,0.00031,120]
[400065607,1767060640351,-200.84865224,0.00031,120]
[400065608,1767060640360,-187.62576867,0.00031,120]
[400065609,1767060640369,-168.7252963,0.00031,120]
[400065610,1767060640378,-183.67320137,0.00031,120]
[400065611,1767060640387,-161.5276731,0.00031,120]